bitfinex/quotes_ETHUSD_20230118
["timestamp","ask_amount","ask_price","bid_price","bid_amount"]
[1674055745547,1.3,1591.7,1591.6,20.23369012]
[1674055745755,0.066,1592.0,1591.7,1.0]
[1674055746002,1.3,1592.0,1591.8,26.53676]
[1674055747214,1.3,1592.0,1591.9,1.409]
[1674055747476,1.3,1592.0,1591.9,20.2544]
[1674055748802,0.65638208,1592.1,1592.0,1.0]
[1674055749143,0.65638208,1592.1,1592.0,21.2622]
[1674055749480,0.65638208,1592.1,1592.0,20.2622]
[1674055750205,0.65638208,1592.1,1592.0,18.8442]
[1674055751428,0.65638208,1592.1,1592.0,20.2622]
[1674055752732,1.01e-06,1592.2,1592.0,21.6802]
[1674055752886,4.19440845,1592.5,1592.3,25.12088]
[1674055753095,4.19440845,1592.5,1592.4,1.413]
[1674055753306,2.39955804,1592.6,1592.4,20.25246]
[1674055753527,2.39955804,1592.6,1592.5,20.24629]
[1674055753528,2.33355804,1592.6,1592.5,20.24629]
[1674055755752,2.33355804,1592.6,1592.5,18.83829]
[1674055757568,2.33355804,1592.6,1592.5,12.55886]
[1674055759332,2.33355804,1592.6,1592.5,5.11613468]
[1674055761554,2.33355804,1592.6,1592.5,17.67499468]
[1674055763530,2.33355804,1592.6,1592.5,10.74125027]
[1674055764392,2.33355804,1592.6,1592.5,17.02068027]
[1674055766896,2.33355804,1592.6,1592.5,10.74125027]
[1674055767636,2.33355804,1592.6,1592.5,17.02068027]
[1674055771323,2.33355804,1592.6,1592.5,18.43868027]
[1674055772687,2.33355804,1592.6,1592.5,24.71811027]
[1674055772899,0.0593376,1592.8,1592.6,1.0]
[1674055773096,7.6e-06,1592.8,1592.7,27.95056]
[1674055773325,1.3649242,1593.0,1592.8,1.0]
[1674055773570,1.3649242,1593.0,1592.9,25.1114]
[1674055773900,1.3649242,1593.0,1592.9,25.74814173]
[1674055774049,0.0649242,1593.0,1592.9,25.74814173]
[1674055774267,0.059542,1593.3,1592.9,25.74814173]
[1674055774474,0.059542,1593.3,1593.1,1.418]
[1674055774684,0.059542,1593.3,1593.2,25.10668]
[1674055775481,0.059542,1593.3,1593.2,26.51568]
[1674055776368,0.059542,1593.3,1593.2,25.10668]
[1674055778416,0.829542,1593.3,1593.2,18.83001]
[1674055779249,1.829542,1593.3,1593.2,18.83001]
[1674055780043,0.829542,1593.3,1593.2,18.83001]
[1674055780273,1.829542,1593.3,1593.2,18.83001]
[1674055781670,0.059542,1593.3,1593.2,18.83001]
[1674055781991,1.829542,1593.3,1593.2,18.83001]
[1674055782514,1.829542,1593.3,1593.2,6.27667]
[1674055782721,1.829542,1593.3,1593.2,5.11390846]
[1674055783192,1.829542,1593.3,1593.1,0.066]
[1674055783193,3.247542,1593.3,1593.1,0.066]
[1674055783407,2.407,1593.2,1593.0,6.27745]
[1674055785951,2.409,1593.2,1593.0,6.27745]
[1674055786157,3.707,1593.2,1593.0,6.27745]
[1674055786483,2.707,1593.2,1593.0,12.55491]
[1674055786833,1.3,1593.2,1593.0,18.83237]
[1674055793319,1.3,1593.2,1593.0,20.25037]
[1674055793950,1.3,1593.2,1593.0,26.52783]
[1674055794182,1.3,1593.2,1593.1,2.412]
[1674055794397,1.3,1593.2,1593.1,21.24318]
[1674055795258,1.3,1593.2,1593.1,20.24318]
[1674055795638,0.059542,1593.3,1593.2,18.83001]
[1674055795867,0.059542,1593.3,1593.2,20.24301]
[1674055796675,2e-06,1593.3,1593.2,20.24301]
[1674055796924,0.05704018,1593.4,1593.2,20.24301]
[1674055797137,0.06762128,1593.6,1593.3,3.836]
[1674055797325,0.06762128,1593.6,1593.5,1.418]
[1674055797547,0.06762128,1593.6,1593.5,20.24447]
[1674055798060,0.06762128,1593.6,1593.5,20.88121173]
[1674055798462,1.28e-06,1593.6,1593.5,22.28821173]
[1674055798793,0.06575371,1593.8,1593.6,1.0]
[1674055799009,0.06575371,1593.8,1593.7,26.5168]
[1674055799212,3.71e-06,1593.8,1593.7,26.5168]
[1674055799438,0.07140543,1593.9,1593.7,27.15354173]
[1674055799650,0.07140543,1593.9,1593.8,20.23493]
[1674055800265,0.07822629,1594.0,1593.9,1.418]
[1674055800493,0.07822629,1594.0,1593.9,2.836]
[1674055800711,1.36732238,1594.2,1593.9,22.29447173]
[1674055800936,1.36732238,1594.2,1594.0,13.96504]
[1674055801144,0.06732238,1594.2,1594.0,13.96504]
[1674055801373,1.36910825,1594.7,1594.0,16.01978173]
[1674055801548,1.36910825,1594.7,1594.4,1.418]
[1674055801757,1.36910825,1594.7,1594.5,18.81465]
[1674055801970,0.06910825,1594.7,1594.5,6.27155]
[1674055802194,0.06910825,1594.7,1594.4,6.33781]
[1674055802377,0.06910825,1594.7,1594.5,6.27143]
[1674055803125,0.07110825,1594.7,1594.5,12.54298]
[1674055803317,0.06910825,1594.7,1594.5,12.54298]
[1674055803523,0.06910825,1594.7,1594.4,6.33769]
[1674055803734,1.47910825,1594.7,1594.4,6.27169]
[1674055804234,1.0,1594.6,1594.4,6.27169]
[1674055804379,1.406,1594.5,1594.3,6.33805]
[1674055804592,1.414,1594.4,1594.2,6.33842]
[1674055804924,1.418,1594.3,1594.1,12.61168]
[1674055805135,1.0,1594.2,1594.1,12.54568]
[1674055805475,1.0,1594.2,1594.0,6.33923]
[1674055805476,2.418,1594.2,1594.0,6.33923]
[1674055805786,3.711,1594.2,1593.9,6.33962]
[1674055805953,2.3,1594.2,1593.9,6.27362]
[1674055806149,2.7707,1594.2,1593.9,6.27362]
[1674055806899,1.7707,1594.2,1593.9,6.27362]
[1674055807128,1.7707,1594.2,1593.9,12.54753]
[1674055807129,1.3,1594.2,1593.9,12.54753]
[1674055809199,1.3,1594.2,1593.9,18.82144]
[1674055813763,1.3,1594.2,1593.9,20.23944]
[1674055813955,1.3,1594.2,1594.0,1.0]
[1674055814160,1.3,1594.2,1594.1,25.09252]
[1674055817750,1.3,1594.2,1594.1,18.81939]
[1674055820105,1.3,1594.2,1594.1,12.54626]
[1674055821537,3.0227,1594.2,1594.0,0.066]
[1674055821793,3.0227,1594.2,1593.9,12.54732]
[1674055821794,1.4707,1594.1,1593.9,12.54732]
[1674055821950,1.0,1594.1,1593.9,6.27362]
[1674055822165,1.0,1594.1,1593.9,12.54753]
[1674055822592,2.3,1594.1,1593.9,12.54753]
[1674055823379,3.556,1594.1,1593.9,12.54753]
[1674055823592,3.556,1594.1,1593.9,6.27362]
[1674055824170,3.556,1594.1,1593.8,12.61416]
[1674055824381,3.556,1594.1,1593.8,6.27405]
[1674055824632,3.556,1594.1,1593.8,12.54836]
[1674055824816,14.8463,1594.1,1593.7,6.34044]
[1674055825036,1.255,1593.9,1593.7,6.27444]
[1674055825242,1.0,1593.8,1593.6,6.34089]
[1674055825552,1.0,1593.8,1593.6,6.27489]
[1674055825763,1.0,1593.8,1593.6,6.27124979]
[1674055826000,1.3,1593.8,1593.6,6.27124979]
[1674055826173,7.59492,1593.9,1593.6,6.27124979]
[1674055826375,1.0,1593.8,1593.6,6.27124979]
[1674055827045,9.89592,1593.9,1593.6,6.27124979]
[1674055827682,1.0,1593.8,1593.6,6.27124979]
[1674055828214,1.0,1593.8,1593.5,6.34123]
[1674055828438,1.256,1593.6,1593.4,12.61725]
[1674055828594,1.256,1593.6,1593.5,6.27548]
[1674055829019,1.256,1593.7,1593.5,6.27548]
[1674055829813,9.29441796,1593.8,1593.4,12.61729]
[1674055829814,2.256,1593.6,1593.4,12.61729]
[1674055829951,2.256,1593.6,1593.4,6.27561]
[1674055830612,3.556,1593.6,1593.4,6.27561]
[1674055830834,4.0269,1593.6,1593.4,6.27561]
[1674055831525,2.505,1593.5,1593.3,0.179219]
[1674055831740,9.00278,1593.4,1593.3,0.113219]
[1674055831983,9.06878,1593.4,1593.3,0.113219]
[1674055832219,15.34466,1593.4,1593.3,0.113219]
[1674055832362,26.37654,1593.4,1593.3,0.113219]
[1674055832574,27.67654,1593.4,1593.3,0.113219]
[1674055832815,27.67654,1593.4,1593.1,0.113219]
[1674055832816,0.84623379,1593.2,1593.1,0.113219]
[1674055833041,9.61890379,1593.2,1593.1,0.113219]
[1674055833222,9.68490379,1593.2,1593.1,0.113219]
[1674055833674,10.68490379,1593.2,1593.1,0.113219]
[1674055833866,4.70823379,1593.2,1593.1,0.113219]
[1674055834076,4.64223379,1593.2,1593.1,0.113219]
[1674055834285,5.64223379,1593.2,1593.1,0.113219]
[1674055834518,11.98490379,1593.2,1593.1,0.113219]
[1674055834951,11.51390379,1593.2,1593.1,0.113219]
[1674055835164,17.79057379,1593.2,1593.1,0.113219]
[1674055835878,16.79057379,1593.2,1593.1,0.113219]
[1674055836226,10.51390379,1593.2,1593.1,0.113219]
[1674055837036,4.23723379,1593.2,1593.1,0.113219]
[1674055837259,2.91623379,1593.2,1593.1,0.113219]
[1674055837758,4.38723379,1593.2,1593.1,0.113219]
[1674055837999,2.91623379,1593.2,1593.1,0.113219]
[1674055838288,9.19290379,1593.2,1593.1,0.113219]
[1674055838501,9.25890379,1593.2,1593.1,0.113219]
[1674055839122,10.25890379,1593.2,1593.1,0.113219]
[1674055840299,18.78057379,1593.2,1593.1,0.113219]
[1674055840506,25.05724379,1593.2,1593.1,0.113219]
[1674055840960,25.05724379,1593.2,1593.1,0.000219]
[1674055840961,29.80724379,1593.2,1593.1,0.000219]
[1674055843027,29.80724379,1593.2,1592.6,0.1853404]
[1674055843233,29.80724379,1593.2,1592.3,6.4554008]
[1674055843234,1.245,1592.7,1592.3,6.4554008]
[1674055843460,1.245,1592.7,1592.3,6.3993604]
[1674055843461,13.80268,1592.7,1592.3,6.3993604]
[1674055843693,1.0,1592.6,1592.3,6.3993604]
[1674055844299,7.27906,1592.6,1592.3,6.3993604]
[1674055844552,7.34506,1592.6,1592.3,6.3993604]
[1674055844890,6.34506,1592.6,1592.3,0.1193404]
[1674055845116,1.366,1592.6,1592.3,6.3995404]
[1674055845257,1.3,1592.6,1592.3,6.3995404]
[1674055845755,2.3,1592.6,1592.3,6.3995404]
[1674055845887,1.3,1592.6,1592.3,6.3995404]
[1674055846097,1.3,1592.6,1592.3,0.1193404]
[1674055846356,7.57905,1592.6,1592.3,6.3995504]
[1674055846673,1.366,1592.6,1592.3,6.3995504]
[1674055846832,7.57905,1592.6,1592.3,0.1193404]
[1674055847042,7.64505,1592.6,1592.3,0.1193404]
[1674055847791,8.64505,1592.6,1592.3,0.1193404]
[1674055848607,1.0,1592.5,1592.3,0.1193404]
[1674055848718,7.27943,1592.5,1592.3,0.1193404]
[1674055848932,7.34543,1592.5,1592.3,0.1193404]
[1674055849361,1.256,1592.4,1592.3,0.1193404]
[1674055850212,2.556,1592.4,1592.3,0.1193404]
[1674055850772,9.83582,1592.4,1592.3,0.1193404]
[1674055850989,16.18164,1592.4,1592.3,0.1193404]
[1674055851134,15.18164,1592.4,1592.3,0.1193404]
[1674055851351,1.366,1592.4,1592.3,0.1193404]
[1674055851556,1.3,1592.4,1592.3,0.1193404]
[1674055852038,1.3,1592.4,1592.3,19.7280004]
[1674055852225,1.3,1592.4,1592.3,7.1675604]
[1674055852630,1.3,1592.4,1592.3,12.6797804]
[1674055852846,1.3,1592.4,1592.3,6.3995604]
[1674055856709,1.29691851,1592.4,1592.3,6.3995604]
[1674055856919,1.29691851,1592.4,1592.3,0.1193404]
[1674055857580,2.29691851,1592.4,1592.3,0.1193404]
[1674055858006,8.57673851,1592.4,1592.3,0.1193404]
[1674055858218,8.64273851,1592.4,1592.3,0.1193404]
[1674055858404,14.92255851,1592.4,1592.3,0.1193404]
[1674055858811,21.20237851,1592.4,1592.3,0.1193404]
[1674055860842,20.20237851,1592.4,1592.3,0.1193404]
[1674055861661,1.36291851,1592.4,1592.3,0.1193404]
[1674055861912,1.29691851,1592.4,1592.3,0.1193404]
[1674055863494,1.29691851,1592.4,1592.3,6.3995604]
[1674055863862,1.29691851,1592.4,1592.3,18.9600004]
[1674055864944,1.29691851,1592.4,1592.3,12.6797804]
[1674055865712,1.29691851,1592.4,1592.3,0.1193404]
[1674055866121,7.57673851,1592.4,1592.3,0.1193404]
[1674055866448,13.92255851,1592.4,1592.3,0.1193404]
[1674055866812,21.20237851,1592.4,1592.3,0.1193404]
[1674055867496,21.67357851,1592.4,1592.3,0.1193404]
[1674055867703,22.44737851,1592.4,1592.3,0.1193404]
[1674055868237,27.19937851,1592.4,1592.3,0.1193404]
[1674055868640,30.31781218,1592.4,1592.3,0.1193404]
[1674055868973,19.84066,1592.3,1592.2,0.0443568]
[1674055869128,20.37786,1592.3,1592.2,0.0443568]
[1674055869336,14.09764,1592.3,1592.2,0.0443568]
[1674055869795,15.39764,1592.3,1592.2,0.0443568]
[1674055871074,14.39764,1592.3,1592.2,0.0443568]
[1674055871247,2.6872,1592.3,1592.2,0.0443568]
[1674055871464,1.6212,1592.3,1592.2,0.0443568]
[1674055871974,8.58022,1592.3,1592.2,0.0443568]
[1674055872179,8.64622,1592.3,1592.2,0.0443568]
[1674055872933,14.92644,1592.3,1592.2,0.0443568]
[1674055874751,21.20666,1592.3,1592.2,0.0443568]
[1674055875114,22.95366528,1592.3,1592.2,0.0443568]
[1674055875325,24.20966528,1592.3,1592.2,0.0443568]
[1674055875531,28.9658835,1592.3,1592.2,0.0443568]
[1674055875764,31.13944604,1592.3,1592.2,0.0443568]
[1674055876027,31.79545795,1592.3,1592.2,0.0443568]
[1674055876162,31.13944604,1592.3,1592.2,0.0443568]
[1674055876383,32.45861675,1592.3,1592.2,0.0443568]
[1674055876591,0.0201771,1592.1,1591.7,12.71054804]
[1674055876812,1.253,1592.0,1591.7,12.70454804]
[1674055877022,1.256,1591.9,1591.7,0.13973804]
[1674055877232,4.15628858,1591.9,1591.5,0.18888182]
[1674055877449,4.15628858,1591.9,1591.5,0.13284142]
[1674055877450,6.2274,1591.8,1591.5,0.13284142]
[1674055877651,18.84777,1591.7,1591.5,0.13284142]
[1674055877867,6.34859,1591.7,1591.5,0.13284142]
[1674055878093,2.513,1591.6,1591.5,0.13284142]
[1674055878319,4.769,1591.6,1591.5,0.13284142]
[1674055878486,17.33496,1591.6,1591.5,4.142e-05]
[1674055878717,17.87236,1591.6,1591.5,4.142e-05]
[1674055878916,19.17236,1591.6,1591.5,4.142e-05]
[1674055879132,1.0,1591.5,1591.4,0.13810185]
[1674055879327,2.255,1591.5,1591.4,0.13810185]
[1674055879545,19.57176,1591.5,1591.4,0.13810185]
[1674055879765,1.0,1591.4,1591.2,0.16381386]
[1674055879977,7.53717,1591.3,1591.2,0.16381386]
[1674055880166,7.60317,1591.3,1591.2,0.16381386]
[1674055880750,1.366,1591.3,1591.2,0.16381386]
[1674055880910,1.3,1591.3,1591.2,0.16381386]
[1674055882174,1.3,1591.3,1591.2,0.93181386]
[1674055882639,1.3,1591.3,1591.2,0.16381386]
[1674055884478,7.58417,1591.3,1591.2,0.16381386]
[1674055884687,7.65017,1591.3,1591.2,0.16381386]
[1674055885215,1.366,1591.3,1591.2,0.16381386]
[1674055885424,1.3,1591.3,1591.2,0.16381386]
[1674055886948,7.58417,1591.3,1591.2,0.16381386]
[1674055887105,8.65017,1591.3,1591.2,0.16381386]
[1674055887311,1.366,1591.3,1591.2,0.16381386]
[1674055887524,1.3,1591.3,1591.2,0.16381386]
[1674055888322,7.58417,1591.3,1591.2,0.16381386]
[1674055888537,8.65017,1591.3,1591.2,0.16381386]
[1674055888848,14.93434,1591.3,1591.2,0.16381386]
[1674055889206,16.18134,1591.3,1591.2,0.16381386]
[1674055890063,1.0,1591.2,1591.1,0.15463341]
[1674055890274,4.5,1591.2,1591.1,0.15463341]
[1674055890533,21.10968,1591.2,1591.1,0.15463341]
[1674055890680,0.31260253,1591.0,1590.9,0.00075652]
[1674055890885,0.78420253,1591.0,1590.9,0.00075652]
[1674055891116,25.92760253,1591.0,1590.9,0.00075652]
[1674055891324,25.99160253,1591.0,1590.9,0.00075652]
[1674055891573,19.70625253,1591.0,1590.9,0.00075652]
[1674055891796,6.66395253,1591.0,1590.9,0.00075652]
[1674055892851,0.37860253,1591.0,1590.9,0.76875652]
[1674055892990,0.36260253,1591.0,1590.9,7.05450652]
[1674055893202,0.31260253,1591.0,1590.9,7.05450652]
[1674055893621,1.61260253,1591.0,1590.9,13.34025652]
[1674055893827,1.61260253,1591.0,1590.9,13.81195652]
[1674055894042,1.17170253,1591.0,1590.9,14.59425652]
[1674055894287,1.13030253,1591.0,1590.9,14.59425652]
[1674055894989,1.13030253,1591.0,1590.9,6.28650652]
[1674055896261,1.13030253,1591.0,1590.9,12.57225652]
[1674055898410,0.066,1591.4,1591.0,1.0]
[1674055898564,0.01,1591.4,1591.2,1.247]
[1674055898773,10.0848,1591.7,1591.3,12.56834]
[1674055898774,10.0948,1591.7,1591.3,12.56834]
[1674055899142,1.0,1591.6,1591.3,12.56834]
[1674055900166,1.0,1591.6,1591.3,6.28417]
[1674055900719,2.3,1591.7,1591.3,6.28417]
[1674055901033,2.3,1591.7,1591.3,18.85251]
[1674055901034,1.3,1591.7,1591.3,18.85251]
[1674055902352,1.3,1591.7,1591.6,20.10494]
[1674055902771,1.3,1591.7,1591.5,6.3393104]
[1674055903000,1.0,1591.6,1591.4,0.0560404]
[1674055903208,1.0,1591.6,1591.3,6.28417]
[1674055903209,1.0,1591.6,1591.3,12.56777]
[1674055903443,1.0,1591.6,1591.3,18.85172]
[1674055903658,0.9,1591.6,1591.3,18.85172]
[1674055904021,2.2,1591.6,1591.3,18.85172]
[1674055904656,2.2,1591.6,1591.3,6.28387]
[1674055905149,2.2,1591.6,1591.2,6.3405504]
[1674055905308,2.2,1591.6,1591.2,6.3385504]
[1674055905531,2.2,1591.6,1591.2,6.28451]
[1674055906719,8.48303,1591.6,1591.1,6.3406804]
[1674055906940,20.23934858,1591.6,1591.1,6.28464]
[1674055907236,1.256,1591.5,1591.0,0.0560404]
[1674055907463,17.32321,1591.5,1590.9,6.28627652]
[1674055907642,0.4715,1591.4,1590.9,6.28627652]
[1674055908293,1.7715,1591.4,1590.9,12.57202652]
[1674055908653,1.3,1591.4,1590.9,12.57202652]
[1674055910455,1.0,1591.3,1590.9,12.57202652]
[1674055911325,1.3,1591.3,1590.9,12.57202652]
[1674055911537,1.066,1591.5,1590.9,12.57202652]
[1674055911709,1.0,1591.5,1590.9,12.57202652]
[1674055911918,1.3,1591.4,1590.9,12.57202652]
[1674055912539,15.77686858,1591.4,1590.9,6.28627652]
[1674055912765,1.0,1591.3,1590.9,0.00075652]
[1674055913238,1.0,1591.3,1590.9,6.28638652]
[1674055913668,1.0,1591.3,1590.9,12.57213652]
[1674055913829,2.3,1591.3,1590.9,12.57213652]
[1674055914186,1.3,1591.3,1590.9,12.57213652]
[1674055914926,1.0,1591.2,1590.9,0.00075652]
[1674055915114,13.56913,1591.2,1590.9,0.00075652]
[1674055915333,14.10673,1591.2,1590.9,0.00075652]
[1674055915501,2.8376,1591.2,1590.9,0.00075652]
[1674055915706,2.7716,1591.2,1590.9,0.00075652]
[1674055916392,2.7716,1591.2,1590.9,6.28645652]
[1674055916393,1.7716,1591.2,1590.9,6.28645652]
[1674055916627,1.3,1591.2,1590.9,12.57220652]
[1674055916922,2.3,1591.2,1590.9,12.57220652]
[1674055917289,2.3,1591.2,1590.9,18.85795652]
[1674055917618,1.3,1591.2,1590.9,18.85795652]
[1674055917812,2.3,1591.2,1590.9,18.85795652]
[1674055918339,1.0,1591.1,1590.9,18.85795652]
[1674055918704,1.0,1591.1,1590.9,0.00075652]
[1674055919236,2.3,1591.1,1590.9,6.28647652]
[1674055919921,2.3,1591.1,1590.9,0.00075652]
[1674055920343,1.3,1591.1,1590.9,6.28645652]
[1674055920661,1.3,1591.1,1590.9,18.75795652]
[1674055922083,1.3,1591.1,1590.9,20.00195652]
[1674055922445,1.3,1591.1,1590.9,20.66154188]
[1674055923098,1.3,1591.1,1590.9,20.00195652]
[1674055923321,1.3,1591.1,1590.9,18.75795652]
[1674055923492,1.3,1591.1,1590.9,19.41754188]
[1674055923706,1.3,1591.1,1590.9,20.67354188]
[1674055924169,1.3,1591.1,1591.0,20.76263536]
[1674055924564,0.066,1591.5,1591.0,20.76263536]
[1674055924773,1.0,1591.5,1591.0,19.51563536]
[1674055925029,1.3,1591.1,1591.0,19.51563536]
[1674055925381,0.066,1591.5,1591.0,19.51563536]
[1674055925558,0.066,1591.5,1591.0,20.5050134]
[1674055925763,1.3,1591.6,1591.4,1.243]
[1674055926135,8.2907,1591.8,1591.5,18.85014]
[1674055926341,0.066,1591.8,1591.5,18.85014]
[1674055926552,2.3,1591.8,1591.5,18.85014]
[1674055927391,2.3,1591.8,1591.5,12.56676]
[1674055927885,2.95628858,1591.8,1591.4,6.3396204]
[1674055928045,1.74762642,1591.7,1591.4,5.11948631]
[1674055928251,9.77589858,1591.8,1591.4,5.11948631]
[1674055928582,8.47589858,1591.8,1591.4,5.11948631]
[1674055928913,1.3,1591.7,1591.4,5.11948631]
[1674055930247,1.3,1591.7,1591.4,11.40325631]
[1674055930680,1.0,1591.6,1591.4,5.11948631]
[1674055930896,1.0,1591.6,1591.3,6.3399004]
[1674055931082,1.0,1591.6,1591.3,12.56782]
[1674055931445,7.47651858,1591.7,1591.3,12.56782]
[1674055931592,2.3,1591.6,1591.3,12.56782]
[1674055931803,1.3,1591.6,1591.3,12.56782]
[1674055932236,1.3,1591.6,1591.3,6.28386]
[1674055932492,2.3,1591.6,1591.2,12.6247804]
[1674055932713,8.58301,1591.6,1591.2,12.56874]
[1674055933016,1.256,1591.4,1591.1,0.0560404]
[1674055933240,7.53985,1591.4,1591.0,18.85528]
[1674055933388,6.34985,1591.4,1591.0,18.85528]
[1674055933758,6.94860312,1591.3,1590.9,0.0560404]
[1674055933909,1.248,1591.0,1590.8,0.15839937]
[1674055934278,0.4717,1590.9,1590.8,0.15839937]
[1674055934807,6.82309,1591.0,1590.8,0.15839937]
[1674055935029,1.3,1590.9,1590.8,0.15839937]
[1674055935443,1.158,1590.8,1590.5,0.002]
[1674055935649,0.4717,1590.8,1590.5,0.01]
[1674055935912,7.75821,1590.8,1590.5,0.01]
[1674055936087,7.82421,1590.8,1590.4,1.28270497]
[1674055936298,18.91072,1590.8,1590.4,1.28270497]
[1674055936550,1.256,1590.6,1590.4,1.28270497]
[1674055937299,2.556,1590.6,1590.4,1.28270497]
[1674055937438,2.556,1590.6,1590.1,0.15500493]
[1674055937439,4.756,1590.5,1590.1,0.056]
[1674055937803,4.756,1590.5,1589.6,6.35674]
[1674055937804,0.58930074,1590.1,1589.6,6.35674]
[1674055937975,0.4719,1590.0,1589.6,6.29074]
[1674055938193,13.10400001,1590.0,1589.6,6.29074]
[1674055938383,13.17000001,1590.0,1589.6,6.29074]
[1674055938593,13.17000001,1590.0,1589.7,1.0]
[1674055939052,14.47000001,1590.0,1589.7,1.0]
[1674055939665,14.47000001,1590.0,1589.7,7.29039]
[1674055939873,14.47000001,1590.0,1589.7,6.29039]
[1674055940511,14.47000001,1590.0,1589.7,13.58088]
[1674055940850,0.58930074,1590.1,1589.7,14.83688]
[1674055941010,0.58930074,1590.1,1589.8,1.0]
[1674055941218,1.3,1590.0,1589.8,1.0]
[1674055941489,0.099,1590.5,1590.1,18.86613]
[1674055941685,10.7066,1590.8,1590.2,1.246]
[1674055941896,1.3,1590.7,1590.3,18.86367]
[1674055942307,10.7066,1590.8,1590.3,18.86367]
[1674055942510,1.0,1590.7,1590.3,18.86367]
[1674055942910,1.0,1590.7,1590.2,0.066]
[1674055943267,1.0,1590.7,1590.2,6.28841]
[1674055943268,8.58662,1590.7,1590.2,6.28841]
[1674055943424,8.58662,1590.7,1590.2,12.57692]
[1674055943425,2.8707,1590.7,1590.2,12.57692]
[1674055943636,2.7717,1590.7,1590.2,12.57692]
[1674055943891,1.3,1590.7,1590.2,12.57692]
[1674055944067,1.3,1590.7,1590.4,18.86292]
[1674055944497,1.3,1590.7,1590.4,20.10592]
[1674055945540,1.3,1590.7,1590.4,18.86292]
[1674055946006,1.3,1590.7,1590.3,12.64214]
[1674055946197,1.3,1590.7,1590.2,6.35427]
[1674055946528,8.83854,1590.7,1590.2,6.28846]
[1674055946771,15.69578,1590.7,1590.1,12.6433]
[1674055946893,1.253,1590.5,1590.0,6.48503999]
[1674055947102,1.253,1590.5,1590.0,6.41903999]
[1674055947103,7.5404,1590.5,1590.0,6.41903999]
[1674055947346,7.6394,1590.5,1590.0,6.41903999]
[1674055947558,13.6738,1590.5,1590.0,6.41903999]
[1674055947747,14.9738,1590.5,1590.0,6.41903999]
[1674055948164,1.0,1590.4,1590.0,0.12999999]
[1674055948363,7.28793,1590.4,1590.0,0.12999999]
[1674055948570,7.38693,1590.4,1590.0,0.12999999]
[1674055948786,7.3868,1590.4,1590.0,0.12999999]
[1674055948995,8.6868,1590.4,1590.0,0.12999999]
[1674055949263,18.47047206,1590.4,1590.0,0.12999999]
[1674055949579,1.256,1590.3,1590.0,0.12999999]
[1674055949733,2.655,1590.4,1590.0,12.70850999]
[1674055949938,1.3,1590.4,1590.0,6.41920999]
[1674055950182,7.58772,1590.4,1590.0,6.41920999]
[1674055950399,1.399,1590.4,1590.0,6.41920999]
[1674055950646,1.3,1590.4,1590.0,6.41920999]
[1674055950862,0.08,1590.3,1590.0,6.41920999]
[1674055951172,0.08,1590.3,1590.0,12.70850999]
[1674055951388,0.08,1590.3,1590.1,1.0]
[1674055951705,1.38,1590.3,1590.0,0.19599999]
[1674055951912,1.38,1590.3,1590.0,12.70854999]
[1674055952433,7.66817,1590.3,1590.0,0.12999999]
[1674055952647,1.401,1590.3,1590.0,6.41924999]
[1674055952801,1.38,1590.3,1590.0,25.28714999]
[1674055953433,1.38,1590.3,1590.2,6.28851]
[1674055953692,1.38,1590.3,1590.2,18.86553]
[1674055954067,1.38,1590.3,1590.2,6.28851]
[1674055954294,1.38,1590.3,1590.1,6.35477]
[1674055954507,1.38,1590.3,1590.1,6.28877]
[1674055955357,1.38,1590.3,1590.0,12.77435999]
[1674055955679,1.38,1590.3,1590.0,12.70835999]
[1674055956307,1.38,1590.3,1590.0,6.41910999]
[1674055956756,7.66812,1590.3,1590.0,0.12999999]
[1674055957072,7.76712,1590.3,1590.0,0.12999999]
[1674055957447,1.0,1590.2,1590.0,0.12999999]
[1674055958104,2.3,1590.2,1590.0,0.12999999]
[1674055958338,1.256,1590.1,1590.0,0.12999999]
[1674055958566,7.54491,1590.1,1590.0,0.12999999]
[1674055958700,7.64391,1590.1,1590.0,0.12999999]
[1674055958911,2.937,1590.1,1590.0,0.12999999]
[1674055959126,2.838,1590.1,1590.0,0.12999999]
[1674055959556,1.3,1590.1,1590.0,0.12999999]
[1674055959911,1.3,1590.1,1590.0,6.41929999]
[1674055960556,1.3,1590.1,1590.0,12.70859999]
[1674055960756,1.3,1590.1,1590.0,18.99789999]
[1674055961788,1.3,1590.1,1590.0,20.24089999]
[1674055962434,0.08,1590.3,1590.0,18.99789999]
[1674055962594,0.08,1590.3,1590.2,18.86553]
[1674055962803,0.08,1590.3,1590.2,20.12153]
[1674055963264,0.08,1590.3,1590.2,20.75827173]
[1674055966855,0.08,1590.3,1590.2,20.12153]
[1674055967011,0.08,1590.3,1590.2,18.86553]
[1674055973785,1.618,1590.3,1590.2,12.57702]
[1674055974006,1.618,1590.3,1590.2,6.28851]
[1674055974154,2.918,1590.3,1590.2,6.28851]
[1674055974689,2.918,1590.3,1590.1,12.64327]
[1674055974900,2.918,1590.3,1590.1,12.57727]
[1674055975306,1.38,1590.3,1590.1,12.57727]
[1674055975516,1.38,1590.3,1590.1,18.86618]
[1674055977238,1.38,1590.3,1590.1,12.57727]
[1674055977736,1.38,1590.3,1590.1,6.28856]
[1674055978489,1.8518,1590.3,1590.1,12.57747]
[1674055979088,1.38,1590.3,1590.1,12.57747]
[1674055979353,1.38,1590.3,1590.1,18.86638]
[1674055980190,1.38,1590.3,1590.1,12.57747]
[1674055981171,1.38,1590.3,1590.1,18.86638]
[1674055982671,1.38,1590.3,1590.1,12.57747]
[1674055982864,1.38,1590.3,1590.1,18.86638]
[1674055983052,1.38,1590.3,1590.1,12.57747]
[1674055984028,1.0,1590.2,1590.1,6.28856]